[Event "GrandPrix_29.05"]
[Site "Chess.com"]
[Date "2020.05.29"]
[Round "6"]
[White "Mesropov_Konstantin"]
[Black "GM_LOADING"]
[Result "1-0"]
[WhiteElo "2293"]
[BlackElo "2320"]
[TimeControl "600+2"]
[EndTime "12:00:15 PDT"]
[Termination "Mesropov_Konstantin won by resignation"]

1. c4 {[%clk 0:10:01.8]} 1... e6 {[%clk 0:10:00.1]} 2. Nf3 {[%clk 0:10:00.9]}
2... Nf6 {[%clk 0:10:00.7]} 3. Nc3 {[%clk 0:09:59.3]} 3... Bb4 {[%clk
0:09:56.8]} 4. Qb3 {[%clk 0:09:34.2]} 4... c5 {[%clk 0:09:52.5]} 5. e3 {[%clk
0:08:35.2]} 5... O-O {[%clk 0:09:48.7]} 6. d4 {[%clk 0:08:11.8]} 6... d6 {[%clk
0:09:41.4]} 7. Be2 {[%clk 0:08:01.9]} 7... Nc6 {[%clk 0:09:31.2]} 8. O-O {[%clk
0:07:46.9]} 8... Qe7 {[%clk 0:09:18.5]} 9. a3 {[%clk 0:07:36.5]} 9... Ba5 {[%clk
0:08:28.9]} 10. Qc2 {[%clk 0:07:14.7]} 10... Bd7 {[%clk 0:07:52.8]} 11. Bd2
{[%clk 0:06:54.4]} 11... Rac8 {[%clk 0:07:48.1]} 12. b4 {[%clk 0:06:12.1]} 12...
cxb4 {[%clk 0:07:41.9]} 13. axb4 {[%clk 0:06:11.9]} 13... Nxb4 {[%clk
0:06:56.2]} 14. Qb3 {[%clk 0:05:53.7]} 14... b6 {[%clk 0:06:53.3]} 15. Bc1
{[%clk 0:05:22.9]} 15... Nc6 {[%clk 0:03:51.5]} 16. Ba3 {[%clk 0:05:20.4]} 16...
Rfd8 {[%clk 0:03:47.2]} 17. Nb5 {[%clk 0:05:14.4]} 17... Be8 {[%clk 0:03:41]}
18. Rfc1 {[%clk 0:04:34.8]} 18... Ne4 {[%clk 0:03:26.5]} 19. Bd3 {[%clk
0:04:25.8]} 19... f5 {[%clk 0:03:26]} 20. d5 {[%clk 0:03:55.9]} 20... exd5
{[%clk 0:01:54.4]} 21. cxd5 {[%clk 0:03:55.7]} 21... Ne5 {[%clk 0:01:55.7]} 22.
Nxe5 {[%clk 0:03:39]} 22... Qxe5 {[%clk 0:01:46.7]} 23. Bb2 {[%clk 0:03:40]}
23... Qe7 {[%clk 0:01:44.2]} 24. Nd4 {[%clk 0:03:30.8]} 24... Bd7 {[%clk
0:01:14.9]} 25. Nc6 {[%clk 0:03:21.8]} 25... Bxc6 {[%clk 0:01:11.6]} 26. dxc6+
{[%clk 0:03:22.9]} 26... d5 {[%clk 0:01:13.1]} 27. Qa4 {[%clk 0:02:52.9]} 27...
Nc5 {[%clk 0:01:00.7]} 28. Ba3 {[%clk 0:02:38]} 28... Nxa4 {[%clk 0:00:43.5]}
29. Bxe7 {[%clk 0:02:37]} 29... Re8 {[%clk 0:00:44.8]} 30. Bxf5 {[%clk
0:02:15.8]} 30... Rc7 {[%clk 0:00:25.1]} 31. Bd6 {[%clk 0:02:06.2]} 31... Rf7
{[%clk 0:00:26.1]} 32. Bd7 {[%clk 0:01:51.9]} 32... Rd8 {[%clk 0:00:19.2]} 33.
Rxa4 {[%clk 0:01:46.1]} 1-0

[Event "GrandPrix_29.05"]
[Site "Chess.com"]
[Date "2020.05.29"]
[Round "6"]
[White "Winawer81"]
[Black "PlayChessSimple"]
[Result "1-0"]
[WhiteElo "2192"]
[BlackElo "2203"]
[TimeControl "600+2"]
[EndTime "12:00:19 PDT"]
[Termination "Winawer81 won by resignation"]

1. e4 {[%clk 0:10:01.9]} 1... e6 {[%clk 0:09:56.8]} 2. d4 {[%clk 0:10:01.8]}
2... d5 {[%clk 0:09:57.1]} 3. Nd2 {[%clk 0:10:02]} 3... Nf6 {[%clk 0:09:54.7]}
4. e5 {[%clk 0:10:02]} 4... Nfd7 {[%clk 0:09:54.8]} 5. Bd3 {[%clk 0:10:02.2]}
5... c5 {[%clk 0:09:54.9]} 6. c3 {[%clk 0:10:02.6]} 6... Nc6 {[%clk 0:09:55.6]}
7. Ne2 {[%clk 0:10:02.8]} 7... cxd4 {[%clk 0:09:56.8]} 8. cxd4 {[%clk 0:10:03]}
8... Nb6 {[%clk 0:09:58.4]} 9. O-O {[%clk 0:10:00.2]} 9... Bd7 {[%clk
0:09:58.8]} 10. Nf3 {[%clk 0:09:54.5]} 10... h6 {[%clk 0:09:59.3]} 11. Nf4
{[%clk 0:09:46.7]} 11... Rc8 {[%clk 0:09:55.9]} 12. Nh5 {[%clk 0:09:06.6]} 12...
Nb4 {[%clk 0:09:48.4]} 13. Be2 {[%clk 0:08:28.9]} 13... a5 {[%clk 0:07:36.5]}
14. a3 {[%clk 0:08:13.8]} 14... Nc6 {[%clk 0:07:25.7]} 15. Qd2 {[%clk 0:07:04]}
15... a4 {[%clk 0:07:02.5]} 16. Qf4 {[%clk 0:07:01.9]} 16... Ne7 {[%clk
0:06:07.8]} 17. Qg4 {[%clk 0:06:34.1]} 17... Nf5 {[%clk 0:06:08.1]} 18. Bd3
{[%clk 0:06:32.5]} 18... Rh7 {[%clk 0:06:08]} 19. Qh3 {[%clk 0:06:18.4]} 19...
Rh8 {[%clk 0:05:57.1]} 20. g4 {[%clk 0:05:50]} 20... Ne7 {[%clk 0:05:51.8]} 21.
g5 {[%clk 0:05:02.3]} 21... Nf5 {[%clk 0:05:12.8]} 22. Bxf5 {[%clk 0:05:00.9]}
22... exf5 {[%clk 0:05:13.5]} 23. gxh6 {[%clk 0:05:00.5]} 23... Rxc1 {[%clk
0:04:12.3]} 24. hxg7 {[%clk 0:03:24.7]} 24... Rxf1+ {[%clk 0:04:12.4]} 25. Kxf1
{[%clk 0:02:38.9]} 25... Bxg7 {[%clk 0:04:04.1]} 26. Nxg7+ {[%clk 0:02:37.5]}
26... Ke7 {[%clk 0:04:03.7]} 27. Nxf5+ {[%clk 0:02:26.5]} 27... Bxf5 {[%clk
0:03:37.5]} 28. Qxf5 {[%clk 0:02:26.2]} 28... Nd7 {[%clk 0:02:24.4]} 29. Rc1
{[%clk 0:01:45.3]} 29... f6 {[%clk 0:01:36.5]} 30. exf6+ {[%clk 0:01:22.7]}
30... Kf8 {[%clk 0:01:36.3]} 31. Ne5 {[%clk 0:01:13]} 1-0

[Event "GrandPrix_29.05"]
[Site "Chess.com"]
[Date "2020.05.29"]
[Round "6"]
[White "Karinaa87"]
[Black "Chessbuster123"]
[Result "1-0"]
[WhiteElo "1890"]
[BlackElo "1942"]
[TimeControl "600+2"]
[EndTime "12:00:21 PDT"]
[Termination "Karinaa87 won by resignation"]

1. d4 {[%clk 0:10:01.9]} 1... Nf6 {[%clk 0:10:00.2]} 2. c4 {[%clk 0:09:59.7]}
2... g6 {[%clk 0:10:00.9]} 3. Nc3 {[%clk 0:09:59.9]} 3... Bg7 {[%clk 0:10:02]}
4. e4 {[%clk 0:10:00.9]} 4... O-O {[%clk 0:10:02.7]} 5. Bd3 {[%clk 0:09:55.5]}
5... d6 {[%clk 0:09:43.4]} 6. Nge2 {[%clk 0:09:50.8]} 6... Nc6 {[%clk
0:09:19.2]} 7. f3 {[%clk 0:09:28.2]} 7... Nd7 {[%clk 0:09:08.4]} 8. Be3 {[%clk
0:09:27.1]} 8... Na5 {[%clk 0:09:01.8]} 9. Qd2 {[%clk 0:09:22.6]} 9... c5 {[%clk
0:09:01.5]} 10. d5 {[%clk 0:09:04.7]} 10... Ne5 {[%clk 0:08:50.6]} 11. b3 {[%clk
0:09:03.8]} 11... b5 {[%clk 0:08:51.7]} 12. cxb5 {[%clk 0:08:59.5]} 12... a6
{[%clk 0:08:50.5]} 13. b6 {[%clk 0:08:57]} 13... Qxb6 {[%clk 0:08:50.7]} 14. Rc1
{[%clk 0:08:48.3]} 14... Bd7 {[%clk 0:08:22.1]} 15. h4 {[%clk 0:08:46.8]} 15...
h5 {[%clk 0:08:17.5]} 16. Bb1 {[%clk 0:08:15.4]} 16... Bb5 {[%clk 0:07:44.3]}
17. Bh6 {[%clk 0:08:03.1]} 17... c4 {[%clk 0:07:35.9]} 18. Bxg7 {[%clk
0:07:54.6]} 18... Kxg7 {[%clk 0:07:37.8]} 19. b4 {[%clk 0:07:54]} 19... Nb7
{[%clk 0:07:31.9]} 20. Nf4 {[%clk 0:07:37.4]} 20... a5 {[%clk 0:07:15.5]} 21. a4
{[%clk 0:07:22.5]} 21... Bd7 {[%clk 0:07:14.7]} 22. b5 {[%clk 0:07:20]} 22...
Nc5 {[%clk 0:07:10.7]} 23. Rd1 {[%clk 0:07:10.1]} 23... Nb3 {[%clk 0:06:38.2]}
24. Qf2 {[%clk 0:07:02.7]} 24... Qc7 {[%clk 0:06:12]} 25. O-O {[%clk 0:06:46.5]}
25... f6 {[%clk 0:06:11.1]} 26. Qg3 {[%clk 0:06:38.8]} 26... Kf7 {[%clk
0:06:09.4]} 27. Nce2 {[%clk 0:06:24.4]} 27... Qc5+ {[%clk 0:05:54.6]} 28. Qf2
{[%clk 0:06:07.2]} 28... Qb4 {[%clk 0:05:55.4]} 29. Bc2 {[%clk 0:05:51.8]} 29...
Qxa4 {[%clk 0:05:23.1]} 30. Nd4 {[%clk 0:05:41.9]} 30... Qb4 {[%clk 0:05:24.5]}
31. Nde6 {[%clk 0:05:27.7]} 31... Rac8 {[%clk 0:05:02.5]} 32. Nxf8 {[%clk
0:05:23.2]} 32... Kxf8 {[%clk 0:05:01.4]} 33. b6 {[%clk 0:05:20.6]} 33... Rc5
{[%clk 0:04:56.1]} 34. Qg3 {[%clk 0:05:01.6]} 34... Kf7 {[%clk 0:04:56.8]} 35.
Ne6 {[%clk 0:04:57]} 35... Bxe6 {[%clk 0:04:08.8]} 36. dxe6+ {[%clk 0:04:57.2]}
36... Kxe6 {[%clk 0:04:10.7]} 37. f4 {[%clk 0:04:56.6]} 37... Ng4 {[%clk
0:04:09.5]} 38. e5 {[%clk 0:04:33]} 38... Qxb6 {[%clk 0:03:50.6]} 39. Bxg6
{[%clk 0:04:30.1]} 39... Rxe5+ {[%clk 0:03:44]} 40. Kh1 {[%clk 0:04:27.4]} 40...
Re3 {[%clk 0:03:39]} 41. Rde1 {[%clk 0:04:08.7]} 41... Kd7 {[%clk 0:02:48.2]}
42. Rf3 {[%clk 0:04:08.2]} 42... Rxf3 {[%clk 0:02:23.7]} 43. Qxf3 {[%clk
0:04:09]} 43... Nd4 {[%clk 0:02:09.2]} 44. Qa8 {[%clk 0:03:53]} 44... e5 {[%clk
0:01:40.2]} 45. fxe5 {[%clk 0:03:33.8]} 45... dxe5 {[%clk 0:01:35.8]} 46. Qd5+
{[%clk 0:03:24.4]} 46... Ke7 {[%clk 0:01:33.4]} 47. Qf7+ {[%clk 0:02:38.3]}
47... Kd6 {[%clk 0:01:34.1]} 48. Bxh5 {[%clk 0:02:30.7]} 48... Nf3 {[%clk
0:01:08.6]} 49. Rd1+ {[%clk 0:02:24.2]} 49... Kc5 {[%clk 0:01:09.7]} 50. Qd5+
{[%clk 0:02:21.6]} 50... Kb4 {[%clk 0:01:09.3]} 51. Bxg4 {[%clk 0:02:02.5]} 1-0

[Event "GrandPrix_29.05"]
[Site "Chess.com"]
[Date "2020.05.29"]
[Round "6"]
[White "Misterlose0"]
[Black "Tormoz"]
[Result "0-1"]
[WhiteElo "1596"]
[BlackElo "2445"]
[TimeControl "600+2"]
[EndTime "12:00:22 PDT"]
[Termination "Tormoz won by checkmate"]

1. e4 {[%clk 0:10:00.4]} 1... e6 {[%clk 0:09:58.2]} 2. d4 {[%clk 0:10:00.9]}
2... d5 {[%clk 0:09:59.1]} 3. exd5 {[%clk 0:10:02.8]} 3... exd5 {[%clk
0:10:00.1]} 4. Nf3 {[%clk 0:10:04.7]} 4... Nc6 {[%clk 0:09:59.7]} 5. Bb5 {[%clk
0:09:33.5]} 5... Bd6 {[%clk 0:09:59.1]} 6. c4 {[%clk 0:09:30.3]} 6... dxc4
{[%clk 0:09:54]} 7. d5 {[%clk 0:09:32.2]} 7... a6 {[%clk 0:09:55]} 8. Ba4 {[%clk
0:09:34.1]} 8... b5 {[%clk 0:09:54.5]} 9. dxc6 {[%clk 0:09:36]} 9... bxa4 {[%clk
0:09:54.9]} 10. O-O {[%clk 0:08:50.4]} 10... Ne7 {[%clk 0:09:53.2]} 11. Nbd2
{[%clk 0:08:49.9]} 11... Be6 {[%clk 0:08:48.4]} 12. Ng5 {[%clk 0:08:49.4]} 12...
Bd5 {[%clk 0:08:43.6]} 13. Re1 {[%clk 0:08:50.9]} 13... O-O {[%clk 0:08:28.3]}
14. Qc2 {[%clk 0:08:51.8]} 14... Ng6 {[%clk 0:07:00.8]} 15. Nxc4 {[%clk
0:08:52]} 15... Bxc6 {[%clk 0:06:53.9]} 16. Be3 {[%clk 0:08:22.2]} 16... Bb4
{[%clk 0:06:16.8]} 17. Red1 {[%clk 0:06:38.8]} 17... Qe7 {[%clk 0:06:02.8]} 18.
h4 {[%clk 0:05:59.4]} 18... h6 {[%clk 0:04:33.9]} 19. a3 {[%clk 0:05:28.9]}
19... hxg5 {[%clk 0:04:10.1]} 20. Bxg5 {[%clk 0:05:21.2]} 20... Qe6 {[%clk
0:03:17.6]} 21. axb4 {[%clk 0:05:18]} 21... Be4 {[%clk 0:03:16.3]} 22. Qe2
{[%clk 0:04:26.7]} 22... f6 {[%clk 0:03:14.9]} 23. Rd4 {[%clk 0:04:22.5]} 23...
Rae8 {[%clk 0:02:55.6]} 24. f3 {[%clk 0:02:32.9]} 24... Bxf3 {[%clk 0:02:51.2]}
25. Qxe6+ {[%clk 0:02:24.4]} 25... Rxe6 {[%clk 0:02:53.1]} 26. Bf4 {[%clk
0:01:29.4]} 26... Nxh4 {[%clk 0:02:29.3]} 27. Bxc7 {[%clk 0:00:44.7]} 27... Nxg2
{[%clk 0:02:28.6]} 28. Kf2 {[%clk 0:00:14.5]} 28... Bc6 {[%clk 0:02:12.6]} 29.
Rg1 {[%clk 0:00:14]} 29... Rfe8 {[%clk 0:02:11.4]} 30. Rd2 {[%clk 0:00:03.1]}
30... Nf4 {[%clk 0:02:11.3]} 31. Bxf4 {[%clk 0:00:03.1]} 31... Re4 {[%clk
0:02:09.4]} 32. Nd6 {[%clk 0:00:04.1]} 32... Rxf4+ {[%clk 0:02:08.5]} 33. Kg3
{[%clk 0:00:05.4]} 33... Rf3+ {[%clk 0:02:08.1]} 34. Kg4 {[%clk 0:00:06.8]}
34... Re5 {[%clk 0:02:05.3]} 35. Rc1 {[%clk 0:00:07.3]} 35... Rg5+ {[%clk
0:02:00.2]} 36. Kh4 {[%clk 0:00:08.6]} 36... Bd7 {[%clk 0:02:00.4]} 37. Rh2
{[%clk 0:00:04.6]} 37... Rf4# {[%clk 0:01:59.7]} 0-1

[Event "GrandPrix_29.05"]
[Site "Chess.com"]
[Date "2020.05.29"]
[Round "6"]
[White "MAS_1704"]
[Black "Lavrov_Maxim"]
[Result "0-1"]
[WhiteElo "2127"]
[BlackElo "2321"]
[TimeControl "600+2"]
[EndTime "12:00:25 PDT"]
[Termination "Lavrov_Maxim won by resignation"]

1. d4 {[%clk 0:09:44.5]} 1... Nf6 {[%clk 0:10:00.2]} 2. Nf3 {[%clk 0:09:44.9]}
2... g6 {[%clk 0:10:01.3]} 3. Bf4 {[%clk 0:09:45.3]} 3... Bg7 {[%clk 0:10:02]}
4. e3 {[%clk 0:09:46.2]} 4... O-O {[%clk 0:10:02.9]} 5. Be2 {[%clk 0:09:43.3]}
5... d6 {[%clk 0:10:03.8]} 6. h3 {[%clk 0:09:43.7]} 6... b6 {[%clk 0:10:04.6]}
7. O-O {[%clk 0:09:43.6]} 7... Bb7 {[%clk 0:10:05.7]} 8. c4 {[%clk 0:09:44]}
8... Nbd7 {[%clk 0:10:06.4]} 9. Nc3 {[%clk 0:09:43.3]} 9... Re8 {[%clk
0:10:07.5]} 10. d5 {[%clk 0:09:26.7]} 10... e5 {[%clk 0:09:53.6]} 11. Bg3 {[%clk
0:09:13.5]} 11... Nc5 {[%clk 0:09:41.2]} 12. Nd2 {[%clk 0:09:10]} 12... a5
{[%clk 0:09:38.9]} 13. b3 {[%clk 0:09:10]} 13... e4 {[%clk 0:09:12.2]} 14. Qc2
{[%clk 0:09:04]} 14... Bc8 {[%clk 0:08:44]} 15. Bh4 {[%clk 0:07:36.6]} 15... h6
{[%clk 0:08:28.4]} 16. a3 {[%clk 0:06:32.2]} 16... g5 {[%clk 0:08:25]} 17. Bg3
{[%clk 0:06:31.8]} 17... Bf5 {[%clk 0:08:11.4]} 18. b4 {[%clk 0:06:30.2]} 18...
Nd3 {[%clk 0:07:50.4]} 19. bxa5 {[%clk 0:06:29.6]} 19... bxa5 {[%clk 0:07:41.8]}
20. Nb3 {[%clk 0:06:28.1]} 20... Nd7 {[%clk 0:07:12.3]} 21. Nd4 {[%clk
0:06:23.3]} 21... Bxd4 {[%clk 0:07:08.9]} 22. exd4 {[%clk 0:06:23.4]} 22... Nf4
{[%clk 0:07:00.8]} 23. Rfe1 {[%clk 0:04:10.6]} 23... Qf6 {[%clk 0:06:45.6]} 24.
Qd2 {[%clk 0:03:47.1]} 24... Nd3 {[%clk 0:05:32.9]} 25. Nb5 {[%clk 0:03:36.1]}
25... Nxe1 {[%clk 0:04:33.9]} 26. Rxe1 {[%clk 0:03:28.7]} 26... Rac8 {[%clk
0:03:55.4]} 27. Qxa5 {[%clk 0:03:21.7]} 27... e3 {[%clk 0:03:43.4]} 28. f3
{[%clk 0:01:09.5]} 28... Qd8 {[%clk 0:03:15.2]} 29. Qc3 {[%clk 0:01:04.1]} 29...
Nf6 {[%clk 0:03:07.6]} 30. Bf1 {[%clk 0:00:35.7]} 30... Bd7 {[%clk 0:02:33.8]}
31. a4 {[%clk 0:00:22.7]} 31... Bxb5 {[%clk 0:02:24]} 32. axb5 {[%clk
0:00:23.2]} 32... Qe7 {[%clk 0:02:24.5]} 33. Qb3 {[%clk 0:00:16]} 33... Nh5
{[%clk 0:02:18.3]} 34. Bh2 {[%clk 0:00:16.4]} 34... Qf6 {[%clk 0:02:17]} 35. Qd3
{[%clk 0:00:15]} 35... Nf4 {[%clk 0:02:16.3]} 36. Qd1 {[%clk 0:00:10.8]} 36...
e2 {[%clk 0:02:09.1]} 37. Bxe2 {[%clk 0:00:11.3]} 37... Rxe2 {[%clk 0:02:04]}
38. Rxe2 {[%clk 0:00:11.9]} 38... Qxd4+ {[%clk 0:02:05.1]} 0-1

[Event "GrandPrix_29.05"]
[Site "Chess.com"]
[Date "2020.05.29"]
[Round "6"]
[White "Paulz64"]
[Black "metra93"]
[Result "1-0"]
[WhiteElo "2229"]
[BlackElo "2231"]
[TimeControl "600+2"]
[EndTime "12:00:33 PDT"]
[Termination "Paulz64 won by resignation"]

1. d4 {[%clk 0:10:01.9]} 1... d5 {[%clk 0:10:00.5]} 2. c4 {[%clk 0:10:02.5]}
2... dxc4 {[%clk 0:10:02.4]} 3. Nf3 {[%clk 0:10:02.6]} 3... Nf6 {[%clk
0:10:01.7]} 4. e3 {[%clk 0:10:03.7]} 4... a6 {[%clk 0:10:02.9]} 5. a4 {[%clk
0:10:04.2]} 5... Bg4 {[%clk 0:10:03.4]} 6. Bxc4 {[%clk 0:10:04.8]} 6... e6
{[%clk 0:10:04.2]} 7. O-O {[%clk 0:10:04.1]} 7... Nc6 {[%clk 0:10:04.9]} 8. Nc3
{[%clk 0:10:04.6]} 8... Bd6 {[%clk 0:09:56.6]} 9. Be2 {[%clk 0:10:03.4]} 9...
O-O {[%clk 0:09:53]} 10. Nd2 {[%clk 0:10:03.9]} 10... Bxe2 {[%clk 0:09:19.2]}
11. Qxe2 {[%clk 0:10:03.4]} 11... e5 {[%clk 0:09:21.1]} 12. d5 {[%clk
0:10:04.2]} 12... Nb4 {[%clk 0:09:22.4]} 13. e4 {[%clk 0:09:59.6]} 13... Nc2
{[%clk 0:09:11.4]} 14. Rb1 {[%clk 0:09:58.7]} 14... Nd4 {[%clk 0:09:12.4]} 15.
Qd3 {[%clk 0:09:51.3]} 15... Nd7 {[%clk 0:09:01.3]} 16. Nf3 {[%clk 0:09:29.9]}
16... Nc5 {[%clk 0:08:11.4]} 17. Qd1 {[%clk 0:09:23.9]} 17... Qf6 {[%clk
0:08:03.6]} 18. Be3 {[%clk 0:09:13.9]} 18... Nxf3+ {[%clk 0:07:46.5]} 19. Qxf3
{[%clk 0:09:11.7]} 19... Qxf3 {[%clk 0:07:46]} 20. gxf3 {[%clk 0:09:12.7]} 20...
Nd3 {[%clk 0:07:46.3]} 21. Rfd1 {[%clk 0:09:06.3]} 21... Nb4 {[%clk 0:07:46.6]}
22. Rbc1 {[%clk 0:08:43]} 22... f5 {[%clk 0:07:29.6]} 23. Nb1 {[%clk 0:08:06.5]}
23... Rf6 {[%clk 0:06:48.9]} 24. Na3 {[%clk 0:07:52.8]} 24... Raf8 {[%clk
0:05:48.5]} 25. Nc4 {[%clk 0:07:15.6]} 25... Rg6+ {[%clk 0:05:18.1]} 26. Kf1
{[%clk 0:07:03.6]} 26... h5 {[%clk 0:02:43.1]} 27. Nxd6 {[%clk 0:06:52.3]} 27...
cxd6 {[%clk 0:02:42.6]} 28. Rc7 {[%clk 0:06:50.2]} 28... h4 {[%clk 0:02:12.7]}
29. Rxb7 {[%clk 0:06:22.2]} 29... Nc2 {[%clk 0:02:12.6]} 30. Ba7 {[%clk
0:06:07.6]} 30... fxe4 {[%clk 0:02:05.5]} 31. fxe4 {[%clk 0:05:58.9]} 31... h3
{[%clk 0:01:57]} 32. Rd2 {[%clk 0:05:55]} 32... Rc8 {[%clk 0:01:36.2]} 33. Rb8
{[%clk 0:05:51.9]} 33... Rxb8 {[%clk 0:01:32.8]} 34. Bxb8 {[%clk 0:05:52.8]}
34... Nd4 {[%clk 0:01:33.8]} 35. f4 {[%clk 0:05:35.1]} 35... Nf3 {[%clk
0:01:20.9]} 36. Re2 {[%clk 0:05:28.5]} 36... exf4 {[%clk 0:01:14.3]} 37. Rf2
{[%clk 0:05:14.4]} 37... Rg1+ {[%clk 0:01:02.4]} 38. Ke2 {[%clk 0:05:14.9]}
38... Ng5 {[%clk 0:00:51.7]} 39. Rxf4 {[%clk 0:05:09.9]} 39... Rg2+ {[%clk
0:00:52.4]} 40. Kd3 {[%clk 0:05:03.1]} 40... Rxh2 {[%clk 0:00:49.9]} 41. Bxd6
{[%clk 0:05:04]} 41... Rxb2 {[%clk 0:00:42.8]} 42. Rf8+ {[%clk 0:05:00.7]} 42...
Kh7 {[%clk 0:00:43]} 43. Rf1 {[%clk 0:04:54]} 43... Rb3+ {[%clk 0:00:20.7]} 44.
Kd4 {[%clk 0:04:51.3]} 44... Nf3+ {[%clk 0:00:20]} 45. Kc5 {[%clk 0:04:42.5]}
45... g5 {[%clk 0:00:20.4]} 46. e5 {[%clk 0:04:41.9]} 46... g4 {[%clk
0:00:17.3]} 47. e6 {[%clk 0:04:43.1]} 47... Rc3+ {[%clk 0:00:16.7]} 48. Kb4
{[%clk 0:04:42.6]} 48... Re3 {[%clk 0:00:17.8]} 49. e7 {[%clk 0:04:39.1]} 49...
Kg6 {[%clk 0:00:15.3]} 50. Ka5 {[%clk 0:04:38.4]} 50... Kf7 {[%clk 0:00:15.7]}
51. Kxa6 {[%clk 0:04:39.3]} 51... Rd3 {[%clk 0:00:13.9]} 52. Bb4 {[%clk
0:04:34.9]} 52... Rxd5 {[%clk 0:00:14.5]} 53. Rc1 {[%clk 0:04:34.3]} 53... Re5
{[%clk 0:00:12]} 54. Rc8 {[%clk 0:04:33.6]} 54... h2 {[%clk 0:00:10.9]} 55. Rf8+
{[%clk 0:04:32.2]} 55... Kg6 {[%clk 0:00:11.6]} 56. Rg8+ {[%clk 0:04:30.1]}
56... Kf5 {[%clk 0:00:09.6]} 57. Rf8+ {[%clk 0:04:30.2]} 57... Ke4 {[%clk
0:00:10.5]} 58. e8=Q {[%clk 0:04:30.2]} 58... h1=Q {[%clk 0:00:09.5]} 59. Qc6+
{[%clk 0:04:30.2]} 59... Ke3 {[%clk 0:00:09.8]} 60. Bc5+ {[%clk 0:04:31.1]}
60... Ke2 {[%clk 0:00:06.5]} 61. Qb5+ {[%clk 0:04:31.9]} 61... Kd2 {[%clk
0:00:04.9]} 62. Bb4+ {[%clk 0:04:31.5]} 62... Ke3 {[%clk 0:00:04.7]} 63. Rxf3+
{[%clk 0:04:31.7]} 63... Kxf3 {[%clk 0:00:03.6]} 64. Qxe5 {[%clk 0:04:32.4]}
64... Qf1+ {[%clk 0:00:04.8]} 65. Kb6 {[%clk 0:04:29.5]} 65... Qf2+ {[%clk
0:00:05.5]} 66. Bc5 {[%clk 0:04:30.3]} 66... Qa2 {[%clk 0:00:05]} 67. Qf6+
{[%clk 0:04:29.5]} 67... Kg2 {[%clk 0:00:05.2]} 68. a5 {[%clk 0:04:31.4]} 68...
g3 {[%clk 0:00:04.7]} 69. Bd6 {[%clk 0:04:30.7]} 69... Qb3+ {[%clk 0:00:05.7]}
70. Ka7 {[%clk 0:04:31.1]} 70... Qa4 {[%clk 0:00:04.5]} 71. a6 {[%clk
0:04:29.3]} 71... Qd7+ {[%clk 0:00:03.6]} 72. Kb6 {[%clk 0:04:28.5]} 72... Qd8+
{[%clk 0:00:04.4]} 73. Qxd8 {[%clk 0:04:28.8]} 1-0

[Event "GrandPrix_29.05"]
[Site "Chess.com"]
[Date "2020.05.29"]
[Round "6"]
[White "GMMarcinDziuba"]
[Black "RaphaeI"]
[Result "1-0"]
[WhiteElo "2484"]
[BlackElo "2260"]
[TimeControl "600+2"]
[EndTime "12:00:36 PDT"]
[Termination "GMMarcinDziuba won on time"]

1. c4 {[%clk 0:09:59.7]} 1... e5 {[%clk 0:09:35.3]} 2. g3 {[%clk 0:09:57.2]}
2... Nf6 {[%clk 0:09:00.8]} 3. Bg2 {[%clk 0:09:56.8]} 3... c6 {[%clk 0:09:01.8]}
4. Nf3 {[%clk 0:09:55.6]} 4... e4 {[%clk 0:09:03.1]} 5. Nd4 {[%clk 0:09:56.6]}
5... Qb6 {[%clk 0:09:04.8]} 6. Nc2 {[%clk 0:09:45.1]} 6... d5 {[%clk 0:08:31.8]}
7. cxd5 {[%clk 0:09:11.1]} 7... cxd5 {[%clk 0:08:33.7]} 8. O-O {[%clk
0:09:11.8]} 8... Be7 {[%clk 0:08:31.9]} 9. Nc3 {[%clk 0:09:07.4]} 9... O-O
{[%clk 0:08:30.5]} 10. d3 {[%clk 0:09:07.7]} 10... Rd8 {[%clk 0:08:21.4]} 11.
Be3 {[%clk 0:08:02.7]} 11... Qa6 {[%clk 0:06:01.7]} 12. b4 {[%clk 0:07:55.5]}
12... Bg4 {[%clk 0:05:52]} 13. h3 {[%clk 0:06:52.1]} 13... Bh5 {[%clk
0:04:09.1]} 14. Qd2 {[%clk 0:06:21.6]} 14... Nbd7 {[%clk 0:02:45.4]} 15. b5
{[%clk 0:04:59]} 15... Qe6 {[%clk 0:02:46.3]} 16. Nd4 {[%clk 0:04:54.4]} 16...
Qe5 {[%clk 0:02:47.6]} 17. g4 {[%clk 0:03:57.1]} 17... Bg6 {[%clk 0:02:47]} 18.
f4 {[%clk 0:03:53.9]} 18... exf3 {[%clk 0:02:44.8]} 19. Nxf3 {[%clk 0:03:24.2]}
19... Qd6 {[%clk 0:02:09.7]} 20. Nd4 {[%clk 0:03:23.6]} 20... h6 {[%clk
0:01:58.5]} 21. Kh1 {[%clk 0:02:58.5]} 21... Rac8 {[%clk 0:01:59]} 22. Rac1
{[%clk 0:02:46.1]} 22... Nb6 {[%clk 0:01:38.7]} 23. a4 {[%clk 0:02:29.7]} 23...
a5 {[%clk 0:00:49.5]} 24. bxa6 {[%clk 0:02:07]} 24... bxa6 {[%clk 0:00:51.4]}
25. a5 {[%clk 0:02:08.4]} 25... Nbd7 {[%clk 0:00:51.2]} 26. Na4 {[%clk
0:02:09.5]} 26... Qa3 {[%clk 0:00:19]} 27. Nb6 {[%clk 0:01:51.4]} 27... Rxc1
{[%clk 0:00:18.2]} 28. Qxc1 {[%clk 0:01:42.6]} 28... Qxc1 {[%clk 0:00:10.9]} 29.
Rxc1 {[%clk 0:01:44.5]} 29... Bc5 {[%clk 0:00:07.6]} 30. Rxc5 {[%clk 0:01:28.6]}
30... Nxc5 {[%clk 0:00:07.8]} 31. Nc6 {[%clk 0:01:29.6]} 31... Rd6 {[%clk
0:00:04.5]} 32. Ne7+ {[%clk 0:01:28.9]} 1-0